Body Name,Body,Service Level,Expense Type,Expense Code,Narrative,Date,Transaction Number,Amount,Capital and Revenue,Supplier Name,Supplier ID
South Ribble Council,http://statistics.data.gov.uk/doc/local-authority/30UN,Information Services,Capital Expenditure,C234,Samsung Galaxy S2 9.7`` Wifi SM-T813NZKEBTU,14/12/2016,0000428620,"1,645.00",Revenue,ACS SYSTEMS UK LTD,00070166
South Ribble Council,http://statistics.data.gov.uk/doc/local-authority/30UN,Information Services,Capital Expenditure,C234,Samsung S2 keyboard EJ-FT810BBEGGB,14/12/2016,0000428621,344.90,Revenue,ACS SYSTEMS UK LTD,00070166
South Ribble Council,http://statistics.data.gov.uk/doc/local-authority/30UN,Revenues Plus,Financial,4811,PO TRANS,07/12/2016,0000428560,"1,161.49",Revenue,ALLPAY LTD,00122276
South Ribble Council,http://statistics.data.gov.uk/doc/local-authority/30UN,Revenues Plus,Financial,4811,paypoint trans,07/12/2016,0000428560,170.01,Revenue,ALLPAY LTD,00122276
South Ribble Council,http://statistics.data.gov.uk/doc/local-authority/30UN,Revenues Plus,Financial,4811,webconnect,07/12/2016,0000428560,46.05,Revenue,ALLPAY LTD,00122276
South Ribble Council,http://statistics.data.gov.uk/doc/local-authority/30UN,Regeneration,Capital Expenditure,C234,project support November,07/12/2016,0000428308,"1,000.00",Revenue,ARMSTRONG CONSULTING,131444
South Ribble Council,http://statistics.data.gov.uk/doc/local-authority/30UN,Area 2 - Waste Transport/Eastern & Central Teams,Advertising,4842,13000 Christmas Collection Stickers Estimate No 121611,07/12/2016,0000428375,625.00,Revenue,B & D PRINT SERVICES LTD,00015134
South Ribble Council,http://statistics.data.gov.uk/doc/local-authority/30UN,Area 3 - Parks/Leyland East West,Materials General,4046,2016 TREE PLANTING,15/12/2016,0000428376,"1,455.60",Revenue,BANNISTER HALL LANDSCAPE SUPPLIES,00117786
South Ribble Council,http://statistics.data.gov.uk/doc/local-authority/30UN,Area 3 - Parks/Leyland East West,Materials General,4046,fruit trees,15/12/2016,0000428376,101.10,Revenue,BANNISTER HALL LANDSCAPE SUPPLIES,00117786
South Ribble Council,http://statistics.data.gov.uk/doc/local-authority/30UN,Property Services,Rep & Maint Premises,2020,"supply materials & labour to install a new ring main in the garage wash area at Moss Side Depot, install 2 double sockets ",15/12/2016,0000428722,917.45,Revenue,BELEC ELECTRICAL LTD,130290
South Ribble Council,http://statistics.data.gov.uk/doc/local-authority/30UN,Property Services,Rep & Maint Premises,2020,Undertake the electrical remedials at the civic centre as per your quotation  which were identified following the electrical test,21/12/2016,0000428768,501.40,Revenue,BELEC ELECTRICAL LTD,130290
South Ribble Council,http://statistics.data.gov.uk/doc/local-authority/30UN,Development Enterprise & Comm Mgnt,Sports Dev Expenses,4894,Various Boxing Equipment (please see enclosed order form),07/12/2016,0000428448,506.13,Revenue,Boxing Awards Limited,132029
South Ribble Council,http://statistics.data.gov.uk/doc/local-authority/30UN,Neighbourhood Admin & Support,Operational Furniture & Equip,4010,CHISEL � BOLSTER 4� ROEBUCK C/W RUBBER GUARD - 05190325,21/12/2016,0000428882,6.05,Revenue,C & W BERRY LTD,00015231
South Ribble Council,http://statistics.data.gov.uk/doc/local-authority/30UN,Neighbourhood Admin & Support,Materials General,4040,Fast Set Post Mix - 02110336,21/12/2016,0000428882,234.60,Revenue,C & W BERRY LTD,00015231
South Ribble Council,http://statistics.data.gov.uk/doc/local-authority/30UN,Neighbourhood Admin & Support,Materials General,4040,RAWL BOLT - M10 X 50L - 03070217 Box 25,21/12/2016,0000428882,31.50,Revenue,C & W BERRY LTD,00015231
South Ribble Council,http://statistics.data.gov.uk/doc/local-authority/30UN,Area 1 - Penwortham Western Parishes,Materials General,4040,DSD Sign Board Assembly 020064,21/12/2016,0000428401,520.00,Revenue,CA TRAFFIC LTD,00107602
South Ribble Council,http://statistics.data.gov.uk/doc/local-authority/30UN,Area 1 - Penwortham Western Parishes,Materials General,4040,Carriage,21/12/2016,0000428401,24.00,Revenue,CA TRAFFIC LTD,00107602
South Ribble Council,http://statistics.data.gov.uk/doc/local-authority/30UN,Revenues Plus,Peripherals,4242,LA Data Share Programme,21/12/2016,0000428802,"7,909.50",Revenue,CAPITA BUSINESS SERVICES LTD,00117948
South Ribble Council,http://statistics.data.gov.uk/doc/local-authority/30UN,Homelessness,Contributions,4730,"block booking for November It will be for 30 days, a total of 1058.40 + VAT",02/12/2016,0000428430,"1,058.40",Revenue,CHORLEY BOROUGH COUNCIL,00017352
South Ribble Council,http://statistics.data.gov.uk/doc/local-authority/30UN,Area 2 - Waste Transport/Eastern & Central Teams,Materials General,4040,"1 WATER PUMP, GASKETS AND O RINGS, 1 ALTERNATOR BELT, 1 COOLING BELT - MX04 YNL - JFC7688 - AW",21/12/2016,0000428790,372.62,Revenue,CICELEY COMMERCIALS LTD,00059381
South Ribble Council,http://statistics.data.gov.uk/doc/local-authority/30UN,Area 2 - Waste Transport/Eastern & Central Teams,Materials General,4040,1 BRAKE CHAMBER AND FITTINGS - PJ62 UCG - JFC7851 - AW,21/12/2016,0000428796,509.20,Revenue,CICELEY COMMERCIALS LTD,00059381
South Ribble Council,http://statistics.data.gov.uk/doc/local-authority/30UN,HR & Communications,Advertising,4848,CIVIC SUNDAY MAYORS PARADE PHOTOS,14/12/2016,0000428685,110.00,Revenue,CLIVE LAWRENCE PHOTOGRAPHY,00122166
South Ribble Council,http://statistics.data.gov.uk/doc/local-authority/30UN,HR & Communications,Advertising,4848,CHRISTMAS IN LEYLAND LIGHTS SWITCH ON PHOTOS,14/12/2016,0000428685,160.00,Revenue,CLIVE LAWRENCE PHOTOGRAPHY,00122166
South Ribble Council,http://statistics.data.gov.uk/doc/local-authority/30UN,Area 1 - Penwortham Western Parishes,Contract Hire & Lease Costs,3212,HIRE FOR W/C 31.10.16,14/12/2016,0000428437,651.00,Revenue,COLLETT TRANSPORT  SERVICES (CTS),131676
South Ribble Council,http://statistics.data.gov.uk/doc/local-authority/30UN,Area 1 - Penwortham Western Parishes,Contract Hire & Lease Costs,3212,HIRE OF W/C 7.11.16,14/12/2016,0000428437,651.00,Revenue,COLLETT TRANSPORT  SERVICES (CTS),131676
South Ribble Council,http://statistics.data.gov.uk/doc/local-authority/30UN,Area 1 - Penwortham Western Parishes,Contract Hire & Lease Costs,3212,HIRE FOR W/C 14.11.16,14/12/2016,0000428437,651.00,Revenue,COLLETT TRANSPORT  SERVICES (CTS),131676
South Ribble Council,http://statistics.data.gov.uk/doc/local-authority/30UN,Area 1 - Penwortham Western Parishes,Contract Hire & Lease Costs,3212,HIRE OF W/C 21.11.16,14/12/2016,0000428437,558.00,Revenue,COLLETT TRANSPORT  SERVICES (CTS),131676
South Ribble Council,http://statistics.data.gov.uk/doc/local-authority/30UN,Area 1 - Penwortham Western Parishes,Contract Hire & Lease Costs,3212,HIRE OF W/C 21.11.16,21/12/2016,0000428656,186.00,Revenue,COLLETT TRANSPORT  SERVICES (CTS),131676
South Ribble Council,http://statistics.data.gov.uk/doc/local-authority/30UN,Area 1 - Penwortham Western Parishes,Contract Hire & Lease Costs,3212,HIRE FOR W/C 28.11.16 (TO INCLUDE COLLECTION CHARGE OF 140.00),21/12/2016,0000428656,651.00,Revenue,COLLETT TRANSPORT  SERVICES (CTS),131676
South Ribble Council,http://statistics.data.gov.uk/doc/local-authority/30UN,HR & Communications,Balance Sheet,0030,CHILDCARE VOUCHERS DECEMBER 2016,14/12/2016,0000428606,"2,627.00",Revenue,COMPUTERSHARE VOUCHER SERVICES,00116499
South Ribble Council,http://statistics.data.gov.uk/doc/local-authority/30UN,Revenues Plus,Stationery,4130,Mail services,22/12/2016,0000428916,673.52,Revenue,CRITIQOM,131053
South Ribble Council,http://statistics.data.gov.uk/doc/local-authority/30UN,Area 2 - Waste Transport/Eastern & Central Teams,External Contractors Charges,4570,SPEC REPAIR - JFC7899 - VO65 KRE - PD,07/12/2016,0000428535,296.40,Revenue,DENNIS EAGLE LTD,00019774
South Ribble Council,http://statistics.data.gov.uk/doc/local-authority/30UN,Property Services,Rep & Maint Fixed Plant,2035,"2016 / 2017 contract for emergency lighting & fire alarm service at the Civic Centre, Leyland",07/12/2016,0000428434,565.00,Revenue,DES Electrical Services Ltd,131437
South Ribble Council,http://statistics.data.gov.uk/doc/local-authority/30UN,Property Services,Rep & Maint Fixed Plant,2035,2016 / 2017 contract for emergency lighting & fire alarm service at Worden Arts & Craft Centre,07/12/2016,0000428463,250.00,Revenue,DES Electrical Services Ltd,131437
South Ribble Council,http://statistics.data.gov.uk/doc/local-authority/30UN,Neighbourhood Admin & Support,Operational Furniture & Equip,4010,POLESAW HEAD -,21/12/2016,0000428838,114.00,Revenue,DICK LEIGH,00026534
South Ribble Council,http://statistics.data.gov.uk/doc/local-authority/30UN,Neighbourhood Admin & Support,Operational Furniture & Equip,4010,Silky Zubat Replacement blade 330mm - CO271-33,21/12/2016,0000428838,134.72,Revenue,DICK LEIGH,00026534
South Ribble Council,http://statistics.data.gov.uk/doc/local-authority/30UN,Neighbourhood Admin & Support,Operational Furniture & Equip,4010,delivery,21/12/2016,0000428838,3.00,Revenue,DICK LEIGH,00026534
South Ribble Council,http://statistics.data.gov.uk/doc/local-authority/30UN,Development Enterprise & Comm Mgnt,Capital Expenditure,C230,Initial pipe drainage works completed at Gregson Lane Playing Fields,07/12/2016,0000428131,"19,600.40",Revenue,DUNCAN ROSS LIMITED,130432
South Ribble Council,http://statistics.data.gov.uk/doc/local-authority/30UN,Development Enterprise & Comm Mgnt,Capital Expenditure,C230,Interim pipe drainage works and spoil disposal at Gregson Lane Playing Fields,07/12/2016,0000428132,"34,146.32",Revenue,DUNCAN ROSS LIMITED,130432
South Ribble Council,http://statistics.data.gov.uk/doc/local-authority/30UN,Information Services,Peripherals,4246,Fujitsu Scanner Maintenance contract for period 31/01/17 - 30/01/18,21/12/2016,0000428791,"2,570.00",Revenue,E FILE UK LTD,00110958
South Ribble Council,http://statistics.data.gov.uk/doc/local-authority/30UN,Information Services,Peripherals,4260,dec,14/12/2016,0000428653,"2,249.64",Revenue,EE Ltd,131653
South Ribble Council,http://statistics.data.gov.uk/doc/local-authority/30UN,Area 2 - Waste Transport/Eastern & Central Teams,Materials General,4040,Turbo and gaskets - PE08COH - JFC7929  (PD),21/12/2016,0000428829,688.15,Revenue,EVANSHALSHAW (PRESTON) LTD,00021076
South Ribble Council,http://statistics.data.gov.uk/doc/local-authority/30UN,Area 2 - Waste Transport/Eastern & Central Teams,Materials General,4040,"1 DOOR GLASS, 1 SEAL - PF04ULU - JFC7826 - BO",07/12/2016,0000428347,321.94,Revenue,F R SHARROCK LTD,00034539
South Ribble Council,http://statistics.data.gov.uk/doc/local-authority/30UN,Area 2 - Waste Transport/Eastern & Central Teams,External Contractors Charges,4570,Additional Clinical Waste Collections November 2016,14/12/2016,0000428634,603.72,Revenue,FCC Environment Services (UK) Ltd,131612
South Ribble Council,http://statistics.data.gov.uk/doc/local-authority/30UN,Area 2 - Waste Transport/Eastern & Central Teams,External Contractors Charges,4570,retention,14/12/2016,0000428634,-30.19,Revenue,FCC Environment Services (UK) Ltd,131612
South Ribble Council,http://statistics.data.gov.uk/doc/local-authority/30UN,Area 2 - Waste Transport/Eastern & Central Teams,External Contractors Charges,4570,Residual Waste Collections November 2016,14/12/2016,0000428635,"39,682.61",Revenue,FCC Environment Services (UK) Ltd,131612
South Ribble Council,http://statistics.data.gov.uk/doc/local-authority/30UN,Area 2 - Waste Transport/Eastern & Central Teams,External Contractors Charges,4570,Dry Recycling Collections (Non terraced) November 2016,14/12/2016,0000428635,"40,636.25",Revenue,FCC Environment Services (UK) Ltd,131612
South Ribble Council,http://statistics.data.gov.uk/doc/local-authority/30UN,Area 2 - Waste Transport/Eastern & Central Teams,External Contractors Charges,4570,Dry Recycling Collections (terraced) November 2016,14/12/2016,0000428635,"1,930.96",Revenue,FCC Environment Services (UK) Ltd,131612
South Ribble Council,http://statistics.data.gov.uk/doc/local-authority/30UN,Area 2 - Waste Transport/Eastern & Central Teams,External Contractors Charges,4570,Organic Waste Collections (Non terraced) November 2016,14/12/2016,0000428635,"28,158.22",Revenue,FCC Environment Services (UK) Ltd,131612
South Ribble Council,http://statistics.data.gov.uk/doc/local-authority/30UN,Area 2 - Waste Transport/Eastern & Central Teams,External Contractors Charges,4570,Schedule 2 Properties November 2016,14/12/2016,0000428635,"1,612.74",Revenue,FCC Environment Services (UK) Ltd,131612
South Ribble Council,http://statistics.data.gov.uk/doc/local-authority/30UN,Area 2 - Waste Transport/Eastern & Central Teams,External Contractors Charges,4570,Commercial Collections November 2016,14/12/2016,0000428635,"6,312.48",Revenue,FCC Environment Services (UK) Ltd,131612
South Ribble Council,http://statistics.data.gov.uk/doc/local-authority/30UN,Area 2 - Waste Transport/Eastern & Central Teams,External Contractors Charges,4570,Bulky Waste Collections November 2016,14/12/2016,0000428635,873.13,Revenue,FCC Environment Services (UK) Ltd,131612
South Ribble Council,http://statistics.data.gov.uk/doc/local-authority/30UN,Area 2 - Waste Transport/Eastern & Central Teams,External Contractors Charges,4570,WEEE Collections November 2016,14/12/2016,0000428635,326.68,Revenue,FCC Environment Services (UK) Ltd,131612
South Ribble Council,http://statistics.data.gov.uk/doc/local-authority/30UN,Area 2 - Waste Transport/Eastern & Central Teams,External Contractors Charges,4570,Clinical Waste Collections November 2016,14/12/2016,0000428635,556.37,Revenue,FCC Environment Services (UK) Ltd,131612
South Ribble Council,http://statistics.data.gov.uk/doc/local-authority/30UN,Area 2 - Waste Transport/Eastern & Central Teams,External Contractors Charges,4570,Replacement Bins November 2016,14/12/2016,0000428635,"5,000.00",Revenue,FCC Environment Services (UK) Ltd,131612
South Ribble Council,http://statistics.data.gov.uk/doc/local-authority/30UN,Area 2 - Waste Transport/Eastern & Central Teams,External Contractors Charges,4570,Additional Properties November 2016,14/12/2016,0000428635,694.19,Revenue,FCC Environment Services (UK) Ltd,131612
South Ribble Council,http://statistics.data.gov.uk/doc/local-authority/30UN,Area 2 - Waste Transport/Eastern & Central Teams,Balance Sheet,0030,retention,14/12/2016,0000428635,"-2,502.91",Revenue,FCC Environment Services (UK) Ltd,131612
South Ribble Council,http://statistics.data.gov.uk/doc/local-authority/30UN,Area 2 - Waste Transport/Eastern & Central Teams,Balance Sheet,0030,retention,14/12/2016,0000428635,"-3,536.27",Revenue,FCC Environment Services (UK) Ltd,131612
South Ribble Council,http://statistics.data.gov.uk/doc/local-authority/30UN,Area 3 - Parks/Leyland East West,Grounds Maint Cntrctrs Chgs,4657,14 x MV-003M OUTDOOR LED LIGHTS 1 X MV-023B 10M EXTENSION CABLE 1 X 2M CONNECTOR CABLE 3 X 6 PORT,09/12/2016,0000428486,256.48,Revenue,FESTIVE LIGHTS,130235
South Ribble Council,http://statistics.data.gov.uk/doc/local-authority/30UN,Development Enterprise & Comm Mgnt,Capital Expenditure,C234,christmas lights,21/12/2016,0000428716,539.60,Revenue,FESTIVE LIGHTS,130235
South Ribble Council,http://statistics.data.gov.uk/doc/local-authority/30UN,Area 2 - Waste Transport/Eastern & Central Teams,Processing-Internal,4211,Installation of 20 tracking units.,21/12/2016,0000428789,860.00,Revenue,FLEETCHECK LTD,130457
South Ribble Council,http://statistics.data.gov.uk/doc/local-authority/30UN,Regeneration,Other Misc,4851,Advice on company formation,14/12/2016,0000428610,750.00,Revenue,FORBES SOLICITORS,00102018
South Ribble Council,http://statistics.data.gov.uk/doc/local-authority/30UN,Regeneration,Other Misc,4851,Street furniture.,21/12/2016,0000428798,"4,096.00",Revenue,FURNITUBES INTERNATIONAL LIMITED,131320
South Ribble Council,http://statistics.data.gov.uk/doc/local-authority/30UN,Area 3 - Parks/Leyland East West,Grounds Maint Cntrctrs Chgs,4657,Construction of 2 Bow Top Railing C/W Galvanising & Powder Coating for Moss Side Playground - Supply Only,09/12/2016,0000426359,600.00,Revenue,G S F (Lancs) Ltd,131474
South Ribble Council,http://statistics.data.gov.uk/doc/local-authority/30UN,Property Services,Rep & Maint Premises,2020,"Quotation for replacement tubular handrail and anti slip coatings on handrail and treads at Leyland Market as discussed on site,",21/12/2016,0000428823,540.00,Revenue,G S F (Lancs) Ltd,131474
South Ribble Council,http://statistics.data.gov.uk/doc/local-authority/30UN,Area 2 - Waste Transport/Eastern & Central Teams,External Contractors Charges,4570,WINTER SERVICE - JFC7749 - PO11BND - PD,21/12/2016,0000428834,"1,700.63",Revenue,GIBSONS GARDEN MACHINERY LTD,00059051
South Ribble Council,http://statistics.data.gov.uk/doc/local-authority/30UN,Property Services,Rep & Maint Premises,2025,"Please carry out work as per your insurance quotation for a garden wall damaged by a car at Moon Street, Bamber Bridge.",07/12/2016,0000412373,"1,064.00",Revenue,GLENN SLATER CONTRACTORS LTD,131181
South Ribble Council,http://statistics.data.gov.uk/doc/local-authority/30UN,Shared Financial Services,Professional Fees,4512,Certification of grant claims and returns,22/12/2016,0000428932,"7,128.00",Revenue,Grant Thornton UK LLP,130718
South Ribble Council,http://statistics.data.gov.uk/doc/local-authority/30UN,Shared Financial Services,Professional Fees,4512,Main Audit Fee for 2016/17,21/12/2016,0000428933,"10,981.00",Revenue,Grant Thornton UK LLP,130718
South Ribble Council,http://statistics.data.gov.uk/doc/local-authority/30UN,HR & Communications,Training Expense-Course Fees,1405,CMT PLANNING WORKSHOPS  2 HALF DAY SESSIONS SEPTEMBER/OCTOBER 2016,21/12/2016,0000428915,"1,215.20",Revenue,Greengage Consulting Limited,131402
South Ribble Council,http://statistics.data.gov.uk/doc/local-authority/30UN,Area 2 - Waste Transport/Eastern & Central Teams,Materials General,4040,6 BOXES BRAKE PADS - BIN 539 - AW,14/12/2016,0000428597,510.00,Revenue,H & J SERVICES LTD,00114446
South Ribble Council,http://statistics.data.gov.uk/doc/local-authority/30UN,Area 2 - Waste Transport/Eastern & Central Teams,Materials General,4040,IMPREST STOCK OF FILTERS,21/12/2016,0000428759,439.98,Revenue,H & J SERVICES LTD,00114446
South Ribble Council,http://statistics.data.gov.uk/doc/local-authority/30UN,Democratic Services,Printing,4120,PRODUCT NUMBER HE1005 -  HERA SET-UP CHARGE,09/12/2016,0000428613,400.00,Revenue,HALAROSE LTD,00024358
South Ribble Council,http://statistics.data.gov.uk/doc/local-authority/30UN,Democratic Services,Printing,4120,"PRODUCT NUMBER HE1025 - HERA HOUSEHOLD, RATE PER SUCCESSFUL REG (19P) - 20,527.00",09/12/2016,0000428613,"3,900.13",Revenue,HALAROSE LTD,00024358
South Ribble Council,http://statistics.data.gov.uk/doc/local-authority/30UN,Democratic Services,Printing,4120,PRODUCT NUMBER HE1022 - HERA SET-UP CHARGE FOR DATA REFRESH FOR REGISTER,09/12/2016,0000428613,250.00,Revenue,HALAROSE LTD,00024358
South Ribble Council,http://statistics.data.gov.uk/doc/local-authority/30UN,Neighbourhood Admin & Support,Vehicle Running Costs,3134,"2,000 litres GAS OIL (@46.03 pence per litre)",07/12/2016,0000428498,955.40,Revenue,Hall Fuels trading name of WFL (UK) Ltd,00116758
South Ribble Council,http://statistics.data.gov.uk/doc/local-authority/30UN,Neighbourhood Admin & Support,Vehicle Running Costs,3132,"15,000 litres DIESEL (@90.74 pence per litre)",07/12/2016,0000428500,"10,704.54",Revenue,Hall Fuels trading name of WFL (UK) Ltd,00116758
South Ribble Council,http://statistics.data.gov.uk/doc/local-authority/30UN,Neighbourhood Admin & Support,Vehicle Running Costs,3132,"15,000 LITRES DIESEL (@ 0.9295 pence per litre)",21/12/2016,0000428878,"10,346.60",Revenue,Hall Fuels trading name of WFL (UK) Ltd,00116758
South Ribble Council,http://statistics.data.gov.uk/doc/local-authority/30UN,Neighbourhood Admin & Support,Vehicle Running Costs,3132,"15,000 LITRES DIESEL (@ 0.9295 pence per litre)",21/12/2016,0000428895,"3,762.40",Revenue,Hall Fuels trading name of WFL (UK) Ltd,00116758
South Ribble Council,http://statistics.data.gov.uk/doc/local-authority/30UN,Regeneration,Capital Expenditure,C234,York stone surfacing,09/12/2016,0000428477,"8,950.00",Revenue,Hard york quarries llp,132073
South Ribble Council,http://statistics.data.gov.uk/doc/local-authority/30UN,HR & Communications,Training Expense-Course Fees,1402,ONE PLACE FOR NAME REDACTED ONTO ``EXEMPT ACCOMODATION TRAINING COURSE`` 9TH JANUARY 2017,02/12/2016,0000428386,250.00,Revenue,HBINFO LTD,00120883
South Ribble Council,http://statistics.data.gov.uk/doc/local-authority/30UN,HR & Communications,Training Expense-Course Fees,1402,ONE PLACE FOR NAME REDACTED ONTO ``EXEMPT ACCOMODATION TRAINING COURSE`` 9TH JANUARY 2017,02/12/2016,0000428386,250.00,Revenue,HBINFO LTD,00120883
South Ribble Council,http://statistics.data.gov.uk/doc/local-authority/30UN,Area 1 - Penwortham Western Parishes,Operational Furniture & Equip,4013,REPAIR TO HEIGHT BARRIER AT HIGHER WALTON PLAYING FIELDS,21/12/2016,0000428836,361.00,Revenue,Holdens CVE Limited,132119
South Ribble Council,http://statistics.data.gov.uk/doc/local-authority/30UN,HR & Communications,Training Expense-Course Fees,1402,ONE PLACE FOR NAME REDACTED ONTO THE FUTURE OF SUPPORTED HOUSING COURSE ON THE 7TH DECEMBER,21/12/2016,0000428827,289.00,Revenue,HOUSING QUALITY NETWORK,00119810
South Ribble Council,http://statistics.data.gov.uk/doc/local-authority/30UN,Information Services,Peripherals,4248,LALM Lalpac Comprehensive package and additional user licence maintenance for period 23/01/17 - 22/01/18,14/12/2016,0000428666,"10,981.69",Revenue,IDOX PLC,00104485
South Ribble Council,http://statistics.data.gov.uk/doc/local-authority/30UN,HR & Communications,Agency Fees,1121,FINDERS FEE FOR NAME REDACTED,21/12/2016,0000428820,"5,500.00",Revenue,IE RECRUITMENT,132140
South Ribble Council,http://statistics.data.gov.uk/doc/local-authority/30UN,HR & Communications,Agency Fees,1121,FINDERS FEE FOR NAME REDACTED,21/12/2016,0000428821,"5,500.00",Revenue,IE RECRUITMENT,132140
South Ribble Council,http://statistics.data.gov.uk/doc/local-authority/30UN,Healthy Communities,Other Misc,4851,Tennis Coaching in various primary schools;,07/12/2016,0000428478,"1,187.50",Revenue,Jacqueline Lowe,132083
South Ribble Council,http://statistics.data.gov.uk/doc/local-authority/30UN,Regeneration,Other Misc,4861,Time working with Double R Arts to produce display materials for Nativity at Christmas in Leyland,15/12/2016,0000428706,"1,000.00",Revenue,Jane Blackburn,132136
South Ribble Council,http://statistics.data.gov.uk/doc/local-authority/30UN,Property Services,Rep & Maint Premises,2020,Annual Contract for 2016 - 2017 for the maintenance of the Trend BMS HVAC 4 x day visits (TBA) at the Civic Centre Offices,14/12/2016,0000428719,390.00,Revenue,JBC CONTROL SYSTEM,130816
South Ribble Council,http://statistics.data.gov.uk/doc/local-authority/30UN,Area 3 - Parks/Leyland East West,Grounds Maint Cntrctrs Chgs,4657,"33No: 12.00 X 150 X 150mm Oak Posts with domed top & bottom, 3No: recessed drilled (with plugs) and eased edges planned",09/12/2016,0000427880,"3,430.68",Revenue,JOHN HY MAYOR & SONS LTD,00028176
South Ribble Council,http://statistics.data.gov.uk/doc/local-authority/30UN,Planning,Advertising,4841,Press notices for planning applications,21/12/2016,0000428737,551.25,Revenue,JOHNSTON PUBLISHING (NORTH WEST),00011345
South Ribble Council,http://statistics.data.gov.uk/doc/local-authority/30UN,Planning,Advertising,4841,Press notices for planning applications,21/12/2016,0000428738,525.00,Revenue,JOHNSTON PUBLISHING (NORTH WEST),00011345
South Ribble Council,http://statistics.data.gov.uk/doc/local-authority/30UN,Development Enterprise & Comm Mgnt,Capital Expenditure,C230,"Electrical installation for Christmas lights in Leyland �	Leyland Market �	Hough Lane (outside Boots) �	Leyland Cross",07/12/2016,0000428385,"5,487.50",Revenue,Jones lighting ltdMain,131657
South Ribble Council,http://statistics.data.gov.uk/doc/local-authority/30UN,Development Enterprise & Comm Mgnt,Other Misc,4851,"Provision of Hockey Coaching as part of the �Active Schools� coaching programme Total Cost 1300",21/12/2016,0000428702,250.00,Revenue,Josephine Rice,131841
South Ribble Council,http://statistics.data.gov.uk/doc/local-authority/30UN,Area 3 - Parks/Leyland East West,Contract Hire & Lease Costs,3212,HIRE OF 3 TON EXCAVATOR - ON HIRE MONDAY 14/11/16 FOR 2 DAYS HIRE.HOLLAND HOUSE ROAD (FOOTBALL PITCH),09/12/2016,0000428504,265.75,Revenue,K H HIRE SERVICES,00012933
South Ribble Council,http://statistics.data.gov.uk/doc/local-authority/30UN,Planning,Professional Fees,4510,REF: Former New Mill site (07/2016/0690/REM and 07/2012/0729/OUT) Professional Services ,09/12/2016,0000428602,"3,500.00",Revenue,Keppie Massie,131948
South Ribble Council,http://statistics.data.gov.uk/doc/local-authority/30UN,Homelessness,Contributions,4730,HOUSING ADVICE AND MEDIATION Q4 01/01/2017-31/03/2017,21/12/2016,0000428774,"5,000.00",Revenue,KEY UNLOCKING FUTURES LTD,00098601
South Ribble Council,http://statistics.data.gov.uk/doc/local-authority/30UN,Area 2 - Waste Transport/Eastern & Central Teams,Waste Disposal Charges,5112,August 2016 - Incineration of Clinical Waste.,09/12/2016,0000428591,777.48,Revenue,LANCASHIRE TEACHING FT,00120715
South Ribble Council,http://statistics.data.gov.uk/doc/local-authority/30UN,Area 2 - Waste Transport/Eastern & Central Teams,Waste Disposal Charges,5112,July 2016 - Incineration of Clinical Waste.,09/12/2016,0000428592,604.01,Revenue,LANCASHIRE TEACHING FT,00120715
South Ribble Council,http://statistics.data.gov.uk/doc/local-authority/30UN,HR & Communications,Other Local Authorities,4531,PAYROLL SERVICES JULY - SEPTEMBER 2016,02/12/2016,0000428383,"5,623.75",Revenue,LANCS COUNTY COUNCIL,00041645
South Ribble Council,http://statistics.data.gov.uk/doc/local-authority/30UN,HR & Communications,Other Local Authorities,4531,PAYROLL SERVICES OCTOBER - DECEMBER 2016,02/12/2016,0000428384,"5,623.75",Revenue,LANCS COUNTY COUNCIL,00041645
South Ribble Council,http://statistics.data.gov.uk/doc/local-authority/30UN,HR & Communications,Other Local Authorities,4531,PAYROLL SERVICES APRIL - JUNE 2016,02/12/2016,0000428393,"5,623.75",Revenue,LANCS COUNTY COUNCIL,00041645
South Ribble Council,http://statistics.data.gov.uk/doc/local-authority/30UN,Area 2 - Waste Transport/Eastern & Central Teams,Contractors Charges 5,5412,"QUARTER 2 DISPOSAL FEE, LANDFILL TAX & 5% ADMIN FEE",07/12/2016,0000428414,"54,566.40",Revenue,LANCS COUNTY COUNCIL,00041645
South Ribble Council,http://statistics.data.gov.uk/doc/local-authority/30UN,Housing,Cap Grant- Improve Grants,C570,SUPPLY AND INSTALL STAIRLIFT AT ADDRESS REDACTED AS PER YOUR QUOTE OF - 4015,02/12/2016,0000428415,"4,015.00",Revenue,LANCS COUNTY COUNCIL,00041645
South Ribble Council,http://statistics.data.gov.uk/doc/local-authority/30UN,Information Services,Publications,4142,ryde on rating,22/12/2016,0000427647,355.45,Revenue,LEXISNEXIS BUTTERWORTHS,00037138
South Ribble Council,http://statistics.data.gov.uk/doc/local-authority/30UN,Information Services,Publications,4142,Publications,22/12/2016,0000428941,367.00,Revenue,LEXISNEXIS BUTTERWORTHS,00037138
South Ribble Council,http://statistics.data.gov.uk/doc/local-authority/30UN,Development Enterprise & Comm Mgnt,Capital Expenditure,C234,"Funding by way of S106 Contribution of 46,000 to the Sport England Project (Fox Lane Drainage and Pitch Improvement Project",14/12/2016,0000428686,"19,085.00",Revenue,Leyland Fox Lane and Sports and Social Club,132129
South Ribble Council,http://statistics.data.gov.uk/doc/local-authority/30UN,Development Enterprise & Comm Mgnt,Capital Expenditure,C234,"Funding by way of S106 Contribution of 46,000 to the Sport England Project (Fox Lane Drainage and Pitch Improvement Project",22/12/2016,0000428817,"26,915.00",Revenue,Leyland Fox Lane and Sports and Social Club,132129
South Ribble Council,http://statistics.data.gov.uk/doc/local-authority/30UN,Development Enterprise & Comm Mgnt,Other Misc,4851,Booking and installation of Christmas trees above the shops around Leyland & Earnshaw Bridge for Christmas 2015.,09/12/2016,0000428540,500.00,Revenue,Leyland Town Team,131620
South Ribble Council,http://statistics.data.gov.uk/doc/local-authority/30UN,Housing,Cap Grant- Improve Grants,C570,DFG works to property as per quote at ADDRESS REDACTED,14/12/2016,0000428684,"10,000.00",Revenue,M J PARK,00087434
South Ribble Council,http://statistics.data.gov.uk/doc/local-authority/30UN,Area 2 - Waste Transport/Eastern & Central Teams,External Contractors Charges,4570,SPEC REPAIR - JFC7901 - PJ62UCL - PD,07/12/2016,0000428552,803.98,Revenue,M WILSON COMMERCIALS LIMITED,130533
South Ribble Council,http://statistics.data.gov.uk/doc/local-authority/30UN,Neighbourhood Admin & Support,Materials General,4040,ADDRESS REDACTED,07/12/2016,0000428499,582.50,Revenue,Main Street Signs Ltd,131922
South Ribble Council,http://statistics.data.gov.uk/doc/local-authority/30UN,Neighbourhood Admin & Support,Materials General,4040,DELIVERY CHARGE,07/12/2016,0000428499,32.00,Revenue,Main Street Signs Ltd,131922
South Ribble Council,http://statistics.data.gov.uk/doc/local-authority/30UN,Property Services,Rep & Maint Premises,2020,replace the 10no. roof lights at ADDRESS REDACTED as per your estimate JEH/E/6107. Contact Penwortham autotech,21/12/2016,0000428793,585.00,Revenue,MAINCOAT LTD,00099244
South Ribble Council,http://statistics.data.gov.uk/doc/local-authority/30UN,Property Services,Rep & Maint Premises,2020,materials,21/12/2016,0000428793,"1,335.00",Revenue,MAINCOAT LTD,00099244
South Ribble Council,http://statistics.data.gov.uk/doc/local-authority/30UN,Development Enterprise & Comm Mgnt,Other Misc,485I,"Website developments  �	Includes ongoing improvements to destination (Explore) pages  �	South Ribble specific intro copy ",14/12/2016,0000428725,"2,650.00",Revenue,MARKETING LANCASHIRE LIMITED,00089885
South Ribble Council,http://statistics.data.gov.uk/doc/local-authority/30UN,Area 3 - Parks/Leyland East West,Capital Expenditure,C230,"ECOLOGICAL WALKOVER ASSESSMENT, DISPLAY HOUSE AND VINEHOUSE, ADDRESS REDACTED",09/12/2016,0000428554,300.00,Revenue,MIDDLEMARCH ENVIRONMENTAL LTD,00081207
South Ribble Council,http://statistics.data.gov.uk/doc/local-authority/30UN,Area 3 - Parks/Leyland East West,Capital Expenditure,C230,"ECOLOGICAL WALKOVER ASSESSMENT, DISPLAY HOUSE AND VINEHOUSE, ADDRESS REDACTED",09/12/2016,0000428554,300.00,Revenue,MIDDLEMARCH ENVIRONMENTAL LTD,00081207
South Ribble Council,http://statistics.data.gov.uk/doc/local-authority/30UN,Area 1 - Penwortham Western Parishes,Professional Fees,4521,STRAY DOG SERVICE - TO COVER NOVEMBER 2016,14/12/2016,0000428581,402.96,Revenue,MORNINGSIDE KENNELS,00067755
South Ribble Council,http://statistics.data.gov.uk/doc/local-authority/30UN,Democratic Services,Other Expenses,463A,MAYORS CHRISTMAS BANQUET - FRIDAY 2 DECEMBER 2016 MENU AS DISCUSSED NUMBERS TO BE CONFIRMED ,07/12/2016,0000428550,"3,224.50",Revenue,MOSS HOUSE FARM,00121808
South Ribble Council,http://statistics.data.gov.uk/doc/local-authority/30UN,Homelessness,Contributions,4730,Agreed bond and rent in advance NAME REDACTED 500 bond 440 RIA,21/12/2016,0000428927,940.00,Revenue,NAME REDACTED,132143
South Ribble Council,http://statistics.data.gov.uk/doc/local-authority/30UN,Area 2 - Waste Transport/Eastern & Central Teams,External Contractors Charges,4570,LOLER INSPECTION - VO65 KPX - JFC7805 - PD,07/12/2016,0000428490,55.50,Revenue,MUNICIPAL VEHICLE INSPECTION SERVICES LT,00096645
South Ribble Council,http://statistics.data.gov.uk/doc/local-authority/30UN,Area 2 - Waste Transport/Eastern & Central Teams,External Contractors Charges,4570,LOLER INSPECTION - VO65KPY - JFC7806 - PD,07/12/2016,0000428490,55.50,Revenue,MUNICIPAL VEHICLE INSPECTION SERVICES LT,00096645
South Ribble Council,http://statistics.data.gov.uk/doc/local-authority/30UN,Area 2 - Waste Transport/Eastern & Central Teams,External Contractors Charges,4570,LOLER INSPECTION (X2) - VO65KRF - JFC7807 - PD,07/12/2016,0000428490,111.00,Revenue,MUNICIPAL VEHICLE INSPECTION SERVICES LT,00096645
South Ribble Council,http://statistics.data.gov.uk/doc/local-authority/30UN,Area 2 - Waste Transport/Eastern & Central Teams,External Contractors Charges,4570,LOLER INSPECTION (X2) - VO65 KRD - JFC7808 - PD,07/12/2016,0000428490,111.00,Revenue,MUNICIPAL VEHICLE INSPECTION SERVICES LT,00096645
South Ribble Council,http://statistics.data.gov.uk/doc/local-authority/30UN,Area 2 - Waste Transport/Eastern & Central Teams,External Contractors Charges,4570,LOLER INSPECTION (X2) - VO65 KPZ - JFC7809 - PD,07/12/2016,0000428490,111.00,Revenue,MUNICIPAL VEHICLE INSPECTION SERVICES LT,00096645
South Ribble Council,http://statistics.data.gov.uk/doc/local-authority/30UN,Area 2 - Waste Transport/Eastern & Central Teams,External Contractors Charges,4570,LOLER INSPECTION (X2) - VO65 KRE - JFC7810 - PD,07/12/2016,0000428490,111.00,Revenue,MUNICIPAL VEHICLE INSPECTION SERVICES LT,00096645
South Ribble Council,http://statistics.data.gov.uk/doc/local-authority/30UN,Area 2 - Waste Transport/Eastern & Central Teams,Professional Fees,4510,PA6A HERBICIDE APPLICATION TRAINING FOR: NAMES REDACTED,21/12/2016,0000428374,840.00,Revenue,MYERSCOUGH COLLEGE,00026453
South Ribble Council,http://statistics.data.gov.uk/doc/local-authority/30UN,Area 2 - Waste Transport/Eastern & Central Teams,External Contractors Charges,4570,STEAM CLEAN - JFC7603 - VO65KRE (4/10),14/12/2016,0000428643,75.00,Revenue,NAYLORS TRANSPORT (LEYLAND) ltd,00114828
South Ribble Council,http://statistics.data.gov.uk/doc/local-authority/30UN,Area 2 - Waste Transport/Eastern & Central Teams,External Contractors Charges,4570,STEAM CLEAN - JFC7604 - NX58FJZ (10/11),14/12/2016,0000428643,65.00,Revenue,NAYLORS TRANSPORT (LEYLAND) ltd,00114828
South Ribble Council,http://statistics.data.gov.uk/doc/local-authority/30UN,Area 2 - Waste Transport/Eastern & Central Teams,External Contractors Charges,4570,STEAM CLEAN - JFC7605 - PO13UUM (16/11),14/12/2016,0000428643,65.00,Revenue,NAYLORS TRANSPORT (LEYLAND) ltd,00114828
South Ribble Council,http://statistics.data.gov.uk/doc/local-authority/30UN,Area 2 - Waste Transport/Eastern & Central Teams,External Contractors Charges,4570,STEAM CLEAN - JFC7606 - PJ62 UCM (17/11),14/12/2016,0000428643,65.00,Revenue,NAYLORS TRANSPORT (LEYLAND) ltd,00114828
South Ribble Council,http://statistics.data.gov.uk/doc/local-authority/30UN,Area 2 - Waste Transport/Eastern & Central Teams,External Contractors Charges,4570,STEAM CLEAN - JFC7607 - VO65 KRD (18/11),14/12/2016,0000428643,75.00,Revenue,NAYLORS TRANSPORT (LEYLAND) ltd,00114828
South Ribble Council,http://statistics.data.gov.uk/doc/local-authority/30UN,Area 2 - Waste Transport/Eastern & Central Teams,External Contractors Charges,4570,STEAM CLEAN - JFC7609 - MX04YNL (24/11),14/12/2016,0000428643,65.00,Revenue,NAYLORS TRANSPORT (LEYLAND) ltd,00114828
South Ribble Council,http://statistics.data.gov.uk/doc/local-authority/30UN,Area 2 - Waste Transport/Eastern & Central Teams,External Contractors Charges,4570,STEAM CLEAN - JFC7610 - RV14 DTZ (24/11),14/12/2016,0000428643,65.00,Revenue,NAYLORS TRANSPORT (LEYLAND) ltd,00114828
South Ribble Council,http://statistics.data.gov.uk/doc/local-authority/30UN,Area 2 - Waste Transport/Eastern & Central Teams,External Contractors Charges,4570,STEAM CLEAN - JFC7611 - VO65 KPX (29/11),14/12/2016,0000428643,65.00,Revenue,NAYLORS TRANSPORT (LEYLAND) ltd,00114828
South Ribble Council,http://statistics.data.gov.uk/doc/local-authority/30UN,Area 2 - Waste Transport/Eastern & Central Teams,External Contractors Charges,4570,STEAM CLEAN - JFC7612 - PJ62 UCH (30/11),14/12/2016,0000428643,65.00,Revenue,NAYLORS TRANSPORT (LEYLAND) ltd,00114828
South Ribble Council,http://statistics.data.gov.uk/doc/local-authority/30UN,Information Services,Processing-Internal,4212,StormAgent licence for 12 months Nov 16 - Nov 17,21/12/2016,0000428846,"6,615.00",Revenue,NCC Group Security Services Ltd,132130
South Ribble Council,http://statistics.data.gov.uk/doc/local-authority/30UN,Property Services,Client Internal Charges,4590,"2016 / 2017 - Weekly waste removal at Leyland Market, @ 79.49 plus ad hoc pick ups as required.",09/12/2016,0000428548,382.96,Revenue,NEALES WASTE MANAGEMENT,130129
South Ribble Council,http://statistics.data.gov.uk/doc/local-authority/30UN,Information Services,Peripherals,4248,SolutionCare Service & Support for period 16/02/17 - 15/02/18,15/12/2016,0000428705,"8,524.00",Revenue,NETCALL TELECOM LTD,00121552
South Ribble Council,http://statistics.data.gov.uk/doc/local-authority/30UN,Area 1 - Penwortham Western Parishes,Professional Fees,4514,DEPLOYMENT OF OFFICERS NOVEMBER 2016,15/12/2016,0000428632,"1,104.17",Revenue,NSL LTD,00116868
South Ribble Council,http://statistics.data.gov.uk/doc/local-authority/30UN,Area 1 - Penwortham Western Parishes,Other Misc,4855,CASH COLLECTION & RINGO TRANSACTIONS NOVEMBER 2016,15/12/2016,0000428632,285.88,Revenue,NSL LTD,00116868
South Ribble Council,http://statistics.data.gov.uk/doc/local-authority/30UN,Information Services,Peripherals,4247, System Care Support 1/4/16 to 31/3/17,07/12/2016,0000428512,"5,506.00",Revenue,NVIRON LTD,00028781
South Ribble Council,http://statistics.data.gov.uk/doc/local-authority/30UN,Development Enterprise & Comm Mgnt,Consultancy Fees,4541,Deliver a business and innovation advice service within the specified geographical area around Longton including all the required,21/12/2016,0000428840,"7,529.00",Revenue,ORVIA GROUP LTD,131952
South Ribble Council,http://statistics.data.gov.uk/doc/local-authority/30UN,Area 1 - Penwortham Western Parishes,Professional Fees,4516,ESTIMATED PENALTY CHARGE NOTICES QUARTER 3,22/12/2016,0000428956,264.40,Revenue,PATROL,00115157
South Ribble Council,http://statistics.data.gov.uk/doc/local-authority/30UN,Shared Assurance Services,Professional Fees,4510,Property surveys re flood grants: 5 Residential Properties at 294=1470 + VAT,14/12/2016,0000428657,"1,176.00",Revenue,Pell Frischmann,132016
South Ribble Council,http://statistics.data.gov.uk/doc/local-authority/30UN,Property Services,External Contractors Charges,4575,To supply hot Committee teas and sweet @ 6.20 per head for 60 on 15th Sept 2016 @ 16.30 to SRBC,21/12/2016,0000428869,342.00,Revenue,Penningtons Catering Ltd,131684
South Ribble Council,http://statistics.data.gov.uk/doc/local-authority/30UN,Neighbourhood Admin & Support,Vehicle Running Costs,3132,FUEL FOR JULY 2016,15/12/2016,0000428673,383.95,Revenue,PETROMEX MILLBROOK WAY SERVICE STATION,00062572
South Ribble Council,http://statistics.data.gov.uk/doc/local-authority/30UN,Neighbourhood Admin & Support,Vehicle Running Costs,3132,FUEL FOR JANUARY 2016,15/12/2016,0000428674,279.22,Revenue,PETROMEX MILLBROOK WAY SERVICE STATION,00062572
South Ribble Council,http://statistics.data.gov.uk/doc/local-authority/30UN,Neighbourhood Admin & Support,Vehicle Running Costs,3132,FUEL FOR JUNE 2016,15/12/2016,0000428726,537.28,Revenue,PETROMEX MILLBROOK WAY SERVICE STATION,00062572
South Ribble Council,http://statistics.data.gov.uk/doc/local-authority/30UN,Neighbourhood Admin & Support,Vehicle Running Costs,3132,FUEL FOR SEPTEMBER 2016,15/12/2016,0000428730,402.46,Revenue,PETROMEX MILLBROOK WAY SERVICE STATION,00062572
South Ribble Council,http://statistics.data.gov.uk/doc/local-authority/30UN,Neighbourhood Admin & Support,Vehicle Running Costs,3132,FUEL FOR AUGUST 2016,15/12/2016,0000428731,396.16,Revenue,PETROMEX MILLBROOK WAY SERVICE STATION,00062572
South Ribble Council,http://statistics.data.gov.uk/doc/local-authority/30UN,Area 3 - Parks/Leyland East West,Materials General,4046,20 x GLYCERIA (9cm POT) 75 x LYTHRUM (9cm POT) 75 x CALTHA PALUSTRIS (9cm POT) 75 x MYOSOTIS PALUSTRIS ,21/12/2016,0000427959,255.00,Revenue,PJ & RS HEYS,131330
South Ribble Council,http://statistics.data.gov.uk/doc/local-authority/30UN,Information Services,Stationery,4133,"40,000 sheets Evolution Everyday A4 80gm 15,000 sheets Evolution Business A4 90gm",07/12/2016,0000428482,267.10,Revenue,PREMIER PAPER GROUP LTD,00022606
South Ribble Council,http://statistics.data.gov.uk/doc/local-authority/30UN,Area 2 - Waste Transport/Eastern & Central Teams,External Contractors Charges,4570,REPAIR TO REAR TYRE - PN10HVJ - JFC7923,14/12/2016,0000428661,905.30,Revenue,PRESTON TYRE SPECIALISTS,00109516
South Ribble Council,http://statistics.data.gov.uk/doc/local-authority/30UN,Area 2 - Waste Transport/Eastern & Central Teams,Materials General,4040,2 NEW TYRES - JFC7950 - VN10DKV - RA,14/12/2016,0000428662,407.00,Revenue,PRESTON TYRE SPECIALISTS,00109516
South Ribble Council,http://statistics.data.gov.uk/doc/local-authority/30UN,Homelessness,Contributions,4730,4 Weeks rent in advance NAME REDACTED - tenancy at The Courtyard,07/12/2016,0000428564,390.00,Revenue,REDDY & CO,00108177
South Ribble Council,http://statistics.data.gov.uk/doc/local-authority/30UN,Homelessness,Contractors Charges 5,5311,"Payment Reddy & Co OSM January, February, March 2017",21/12/2016,0000428615,"5,624.90",Revenue,REDDY & CO,00108177
South Ribble Council,http://statistics.data.gov.uk/doc/local-authority/30UN,Area 3 - Parks/Leyland East West,Capital Expenditure,C230,NEW HEADWALL AND TRASH SCREEN WITH ASSOCIATED ACCESS AND FLOOD ALLEVIATION WORKS AT THE,15/12/2016,0000428724,"3,680.00",Revenue,Reid Construction & Civil Engineering Ltd,131544
South Ribble Council,http://statistics.data.gov.uk/doc/local-authority/30UN,Area 3 - Parks/Leyland East West,Capital Expenditure,C230,materials,15/12/2016,0000428724,"5,435.00",Revenue,Reid Construction & Civil Engineering Ltd,131544
South Ribble Council,http://statistics.data.gov.uk/doc/local-authority/30UN,Information Services,Lease Rental Charges,4036,Lease Rental Charges,02/12/2016,0000428295,"9,765.76",Revenue,RICOH (UK) LTD,00082976
South Ribble Council,http://statistics.data.gov.uk/doc/local-authority/30UN,Property Services,Operational Furniture & Equip,4010,subscription for BCIS online for South Ribble Borough Council,21/12/2016,0000428814,"1,044.00",Revenue,RICS,00033307
South Ribble Council,http://statistics.data.gov.uk/doc/local-authority/30UN,Property Services,Consultancy Fees,4541,subscription for BCIS online for South Ribble Borough Council,21/12/2016,0000428814,200.00,Revenue,RICS,00033307
South Ribble Council,http://statistics.data.gov.uk/doc/local-authority/30UN,Property Services,Operational Furniture & Equip,4010,subscription for BCIS online for South Ribble Borough Council,21/12/2016,0000428814,622.00,Revenue,RICS,00033307
South Ribble Council,http://statistics.data.gov.uk/doc/local-authority/30UN,Area 1 - Penwortham Western Parishes,Materials General,4040,10 x CHIKARA,21/12/2016,0000428879,"1,750.00",Revenue,RIGBY TAYLOR LTD,00033145
South Ribble Council,http://statistics.data.gov.uk/doc/local-authority/30UN,Area 1 - Penwortham Western Parishes,Materials General,4040,8 X TRUSTEE AMENITY,21/12/2016,0000428879,864.00,Revenue,RIGBY TAYLOR LTD,00033145
South Ribble Council,http://statistics.data.gov.uk/doc/local-authority/30UN,Regeneration,Other Misc,4861,Traffic Management of Road Closure - Saturday 26 November - Leyland Christmas Festival 2016,14/12/2016,0000428715,700.00,Revenue,Road Safety Services LTD,131989
South Ribble Council,http://statistics.data.gov.uk/doc/local-authority/30UN,Property Services,Water Charges,2511,"Water charges for plots 37 - 42 (units 6 - 1) momentum business centre South rings, Bamber Bridge",14/12/2016,0000428678,50.00,Revenue,ROUNDHOUSE MOMENTUM DEVELOPMENTS LTD,131973
South Ribble Council,http://statistics.data.gov.uk/doc/local-authority/30UN,Property Services,Water Charges,2511,"Water charges for plots 37 - 42 (units 6 - 1) momentum business centre South rings, Bamber Bridge",14/12/2016,0000428678,50.00,Revenue,ROUNDHOUSE MOMENTUM DEVELOPMENTS LTD,131973
South Ribble Council,http://statistics.data.gov.uk/doc/local-authority/30UN,Property Services,Water Charges,2511,"Water charges for plots 37 - 42 (units 6 - 1) momentum business centre South rings, Bamber Bridge",14/12/2016,0000428678,50.00,Revenue,ROUNDHOUSE MOMENTUM DEVELOPMENTS LTD,131973
South Ribble Council,http://statistics.data.gov.uk/doc/local-authority/30UN,Property Services,Water Charges,2511,"Water charges for plots 37 - 42 (units 6 - 1) momentum business centre South rings, Bamber Bridge",14/12/2016,0000428678,50.00,Revenue,ROUNDHOUSE MOMENTUM DEVELOPMENTS LTD,131973
South Ribble Council,http://statistics.data.gov.uk/doc/local-authority/30UN,Property Services,Water Charges,2511,"Water charges for plots 37 - 42 (units 6 - 1) momentum business centre South rings, Bamber Bridge",14/12/2016,0000428678,50.00,Revenue,ROUNDHOUSE MOMENTUM DEVELOPMENTS LTD,131973
South Ribble Council,http://statistics.data.gov.uk/doc/local-authority/30UN,Property Services,Water Charges,2511,"Water charges for plots 37 - 42 (units 6 - 1) momentum business centre South rings, Bamber Bridge",14/12/2016,0000428678,50.00,Revenue,ROUNDHOUSE MOMENTUM DEVELOPMENTS LTD,131973
South Ribble Council,http://statistics.data.gov.uk/doc/local-authority/30UN,Property Services,Other Misc,485C,"charges for plots 37 - 42 (units 6 - 1) momentum business centre South rings, Bamber Bridge for quarter ending March 2017",14/12/2016,0000428681,100.00,Revenue,ROUNDHOUSE MOMENTUM DEVELOPMENTS LTD,131973
South Ribble Council,http://statistics.data.gov.uk/doc/local-authority/30UN,Property Services,Other Misc,485C,"charges for plots 37 - 42 (units 6 - 1) momentum business centre South rings, Bamber Bridge for quarter ending March 2017",14/12/2016,0000428681,100.00,Revenue,ROUNDHOUSE MOMENTUM DEVELOPMENTS LTD,131973
South Ribble Council,http://statistics.data.gov.uk/doc/local-authority/30UN,Property Services,Other Misc,485C,"charges for plots 37 - 42 (units 6 - 1) momentum business centre South rings, Bamber Bridge for quarter ending March 2017",14/12/2016,0000428681,100.00,Revenue,ROUNDHOUSE MOMENTUM DEVELOPMENTS LTD,131973
South Ribble Council,http://statistics.data.gov.uk/doc/local-authority/30UN,Property Services,Other Misc,485C,"charges for plots 37 - 42 (units 6 - 1) momentum business centre South rings, Bamber Bridge for quarter ending March 2017",14/12/2016,0000428681,100.00,Revenue,ROUNDHOUSE MOMENTUM DEVELOPMENTS LTD,131973
South Ribble Council,http://statistics.data.gov.uk/doc/local-authority/30UN,Property Services,Other Misc,485C,"charges for plots 37 - 42 (units 6 - 1) momentum business centre South rings, Bamber Bridge for quarter ending March 2017",14/12/2016,0000428681,100.00,Revenue,ROUNDHOUSE MOMENTUM DEVELOPMENTS LTD,131973
South Ribble Council,http://statistics.data.gov.uk/doc/local-authority/30UN,Property Services,Other Misc,485C,"charges for plots 37 - 42 (units 6 - 1) momentum business centre South rings, Bamber Bridge for quarter ending March 2017",14/12/2016,0000428681,100.00,Revenue,ROUNDHOUSE MOMENTUM DEVELOPMENTS LTD,131973
South Ribble Council,http://statistics.data.gov.uk/doc/local-authority/30UN,Property Services,Other Misc,485C,"charge for plots 37 - 42 (units 6 - 1) momentum business centre South rings, Bamber Bridge for quarter ending December 2016",14/12/2016,0000428683,100.00,Revenue,ROUNDHOUSE MOMENTUM DEVELOPMENTS LTD,131973
South Ribble Council,http://statistics.data.gov.uk/doc/local-authority/30UN,Property Services,Other Misc,485C,"charge for plots 37 - 42 (units 6 - 1) momentum business centre South rings, Bamber Bridge for quarter ending December 2016",14/12/2016,0000428683,100.00,Revenue,ROUNDHOUSE MOMENTUM DEVELOPMENTS LTD,131973
South Ribble Council,http://statistics.data.gov.uk/doc/local-authority/30UN,Property Services,Other Misc,485C,"charge for plots 37 - 42 (units 6 - 1) momentum business centre South rings, Bamber Bridge for quarter ending December 2016",14/12/2016,0000428683,100.00,Revenue,ROUNDHOUSE MOMENTUM DEVELOPMENTS LTD,131973
South Ribble Council,http://statistics.data.gov.uk/doc/local-authority/30UN,Property Services,Other Misc,485C,"charge for plots 37 - 42 (units 6 - 1) momentum business centre South rings, Bamber Bridge for quarter ending December 2016",14/12/2016,0000428683,100.00,Revenue,ROUNDHOUSE MOMENTUM DEVELOPMENTS LTD,131973
South Ribble Council,http://statistics.data.gov.uk/doc/local-authority/30UN,Property Services,Other Misc,485C,"charge for plots 37 - 42 (units 6 - 1) momentum business centre South rings, Bamber Bridge for quarter ending December 2016",14/12/2016,0000428683,100.00,Revenue,ROUNDHOUSE MOMENTUM DEVELOPMENTS LTD,131973
South Ribble Council,http://statistics.data.gov.uk/doc/local-authority/30UN,Property Services,Other Misc,485C,"charge for plots 37 - 42 (units 6 - 1) momentum business centre South rings, Bamber Bridge for quarter ending December 2016",14/12/2016,0000428683,100.00,Revenue,ROUNDHOUSE MOMENTUM DEVELOPMENTS LTD,131973
South Ribble Council,http://statistics.data.gov.uk/doc/local-authority/30UN,Information Services,Postage,4295,Postage,07/12/2016,0000428563,279.68,Revenue,ROYAL MAIL GROUP PLC,00033543
South Ribble Council,http://statistics.data.gov.uk/doc/local-authority/30UN,Democratic Services,Postage,4291,Postage,22/12/2016,0000428670,"5,742.00",Revenue,ROYAL MAIL GROUP PLC,00033543
South Ribble Council,http://statistics.data.gov.uk/doc/local-authority/30UN,HR & Communications,Payroll Suspense,1741,ANNUAL SUBSCRIPTION FOR 2017 NAME REDACTED,22/12/2016,0000428938,290.00,Revenue,RTPI,00033491
South Ribble Council,http://statistics.data.gov.uk/doc/local-authority/30UN,Property Services,Energy Costs,2304,9/11/16 to 5/12/16,21/12/2016,0000428843,"1,483.35",Revenue,SCOTTISH HYDRO ELECTRIC,130051
South Ribble Council,http://statistics.data.gov.uk/doc/local-authority/30UN,Property Services,Energy Costs,2307,ccl,21/12/2016,0000428843,98.02,Revenue,SCOTTISH HYDRO ELECTRIC,130051
South Ribble Council,http://statistics.data.gov.uk/doc/local-authority/30UN,Property Services,Energy Costs,2304,27/8/16 to 24/11/16,21/12/2016,0000428844,"1,299.17",Revenue,SCOTTISH HYDRO ELECTRIC,130051
South Ribble Council,http://statistics.data.gov.uk/doc/local-authority/30UN,Property Services,Energy Costs,2307,ccl,21/12/2016,0000428844,84.68,Revenue,SCOTTISH HYDRO ELECTRIC,130051
South Ribble Council,http://statistics.data.gov.uk/doc/local-authority/30UN,Property Services,Energy Costs,2304,27/8/16 to 6/12/16,21/12/2016,0000428845,839.02,Revenue,SCOTTISH HYDRO ELECTRIC,130051
South Ribble Council,http://statistics.data.gov.uk/doc/local-authority/30UN,Property Services,Energy Costs,2307,ccl,21/12/2016,0000428845,56.18,Revenue,SCOTTISH HYDRO ELECTRIC,130051
South Ribble Council,http://statistics.data.gov.uk/doc/local-authority/30UN,Property Services,Energy Costs,2303,1/11/16 to 30/11/16,21/12/2016,0000428852,467.35,Revenue,SCOTTISH HYDRO ELECTRIC,130051
South Ribble Council,http://statistics.data.gov.uk/doc/local-authority/30UN,Property Services,Energy Costs,2303,ccl,21/12/2016,0000428852,22.86,Revenue,SCOTTISH HYDRO ELECTRIC,130051
South Ribble Council,http://statistics.data.gov.uk/doc/local-authority/30UN,Property Services,Energy Costs,2303,31/8/16 to 26/11/16,21/12/2016,0000428853,601.21,Revenue,SCOTTISH HYDRO ELECTRIC,130051
South Ribble Council,http://statistics.data.gov.uk/doc/local-authority/30UN,Property Services,Energy Costs,2307,ccl,21/12/2016,0000428853,30.19,Revenue,SCOTTISH HYDRO ELECTRIC,130051
South Ribble Council,http://statistics.data.gov.uk/doc/local-authority/30UN,Property Services,Energy Costs,2303,1/11/16 to 30/11/16,21/12/2016,0000428854,831.47,Revenue,SCOTTISH HYDRO ELECTRIC,130051
South Ribble Council,http://statistics.data.gov.uk/doc/local-authority/30UN,Property Services,Energy Costs,2303,ccl,21/12/2016,0000428854,207.86,Revenue,SCOTTISH HYDRO ELECTRIC,130051
South Ribble Council,http://statistics.data.gov.uk/doc/local-authority/30UN,Property Services,Energy Costs,2303,1/11/16 to 30/11/16,21/12/2016,0000428855,"2,971.21",Revenue,SCOTTISH HYDRO ELECTRIC,130051
South Ribble Council,http://statistics.data.gov.uk/doc/local-authority/30UN,Property Services,Energy Costs,2307,ccl,21/12/2016,0000428855,155.95,Revenue,SCOTTISH HYDRO ELECTRIC,130051
South Ribble Council,http://statistics.data.gov.uk/doc/local-authority/30UN,Property Services,Energy Costs,2303,1/11/16 to 30/11/16,21/12/2016,0000428859,"1,998.07",Revenue,SCOTTISH HYDRO ELECTRIC,130051
South Ribble Council,http://statistics.data.gov.uk/doc/local-authority/30UN,Property Services,Energy Costs,2307,ccl,21/12/2016,0000428859,108.61,Revenue,SCOTTISH HYDRO ELECTRIC,130051
South Ribble Council,http://statistics.data.gov.uk/doc/local-authority/30UN,Property Services,Energy Costs,2303,1/10/16 to 31/10/16,21/12/2016,0000428863,"1,807.12",Revenue,SCOTTISH HYDRO ELECTRIC,130051
South Ribble Council,http://statistics.data.gov.uk/doc/local-authority/30UN,Property Services,Energy Costs,2307,ccl,21/12/2016,0000428863,98.94,Revenue,SCOTTISH HYDRO ELECTRIC,130051
South Ribble Council,http://statistics.data.gov.uk/doc/local-authority/30UN,Property Services,Rep & Maint Premises,2020,Please supply 2 x security guards at Leyland Civic Centre on 28th November from 19.30 to 07.00,22/12/2016,0000428900,330.00,Revenue,SECTOR SECURITY SERVICES LTD,00036689
South Ribble Council,http://statistics.data.gov.uk/doc/local-authority/30UN,Information Services,Peripherals,4245,Maintenance Contract renewal for UPS for period 07/12/16 - 31/08/17,02/12/2016,0000428310,746.25,Revenue,SECURE POWER LTD,131336
South Ribble Council,http://statistics.data.gov.uk/doc/local-authority/30UN,Healthy Communities,Consultancy Fees,4536,"R & M 2016/17 payable by 12 payments of 14,931.44 + VAT",14/12/2016,0000428545,"14,931.44",Revenue,SERCO LEISURE (OP) LTD,00094906
South Ribble Council,http://statistics.data.gov.uk/doc/local-authority/30UN,Area 2 - Waste Transport/Eastern & Central Teams,External Contractors Charges,4570,SUPPLY AND FIT GRAPHICS - JFC7908 - BJ66 SKX - PD,22/12/2016,0000428837,745.00,Revenue,SIGNS PRESTON LTD T/A SIGNS EXPRESS CENTRAL LANCS,131706
South Ribble Council,http://statistics.data.gov.uk/doc/local-authority/30UN,Area 2 - Waste Transport/Eastern & Central Teams,External Contractors Charges,4570,SUPPLY AND FIT GRAPHICS - JFC7907 - BJ66 SMO - PD,22/12/2016,0000428837,745.00,Revenue,SIGNS PRESTON LTD T/A SIGNS EXPRESS CENTRAL LANCS,131706
South Ribble Council,http://statistics.data.gov.uk/doc/local-authority/30UN,Area 2 - Waste Transport/Eastern & Central Teams,External Contractors Charges,4570,SUPPLY AND FIT GRAPHICS - JFC7911 - BJ66 MKL - PD,22/12/2016,0000428837,745.00,Revenue,SIGNS PRESTON LTD T/A SIGNS EXPRESS CENTRAL LANCS,131706
South Ribble Council,http://statistics.data.gov.uk/doc/local-authority/30UN,Area 2 - Waste Transport/Eastern & Central Teams,External Contractors Charges,4570,SUPPLY AND FIT GRAPHICS - JFC7910 - BJ66 SKD - PD,22/12/2016,0000428837,745.00,Revenue,SIGNS PRESTON LTD T/A SIGNS EXPRESS CENTRAL LANCS,131706
South Ribble Council,http://statistics.data.gov.uk/doc/local-authority/30UN,Area 2 - Waste Transport/Eastern & Central Teams,External Contractors Charges,4570,SUPPLY AND FIT GRAPHICS - JFC7909 - BJ66 SKU - PD,22/12/2016,0000428837,745.00,Revenue,SIGNS PRESTON LTD T/A SIGNS EXPRESS CENTRAL LANCS,131706
South Ribble Council,http://statistics.data.gov.uk/doc/local-authority/30UN,Neighbourhood Admin & Support,Clothing- Uniforms & Laundry,4410,SWEATSHIRT NAVY - UNEEK UC203 c/w SRBC LOGO medium - SRBC31,15/12/2016,0000428741,18.45,Revenue,SMART IMAGE WORKWEAR,00031503
South Ribble Council,http://statistics.data.gov.uk/doc/local-authority/30UN,Neighbourhood Admin & Support,Clothing- Uniforms & Laundry,4410,BODYWARMER - PORTWEST S414 c/w SRBC LOGO extra large - SRBC36,15/12/2016,0000428741,56.80,Revenue,SMART IMAGE WORKWEAR,00031503
South Ribble Council,http://statistics.data.gov.uk/doc/local-authority/30UN,Neighbourhood Admin & Support,Clothing- Uniforms & Laundry,4410,Body Warmer - PORTWEST S414 c/w SRBC LOGO XX Large - SRBC36,15/12/2016,0000428741,56.80,Revenue,SMART IMAGE WORKWEAR,00031503
South Ribble Council,http://statistics.data.gov.uk/doc/local-authority/30UN,Neighbourhood Admin & Support,Clothing- Uniforms & Laundry,4410,WATERPROOF JACKETS  - SUPERTOUCH 35B4 YELLOW - small - SRBC24,15/12/2016,0000428741,85.00,Revenue,SMART IMAGE WORKWEAR,00031503
South Ribble Council,http://statistics.data.gov.uk/doc/local-authority/30UN,Neighbourhood Admin & Support,Clothing- Uniforms & Laundry,4410,FLEECE NAVY - PORTWEST F400 extra large - SRBC30,15/12/2016,0000428741,53.00,Revenue,SMART IMAGE WORKWEAR,00031503
South Ribble Council,http://statistics.data.gov.uk/doc/local-authority/30UN,Healthy Communities,Consultancy Fees,4532,"Leisure Services Fee 2016/17 (249,981.70) payable by 12 payments of 20,831.81 + VAT",07/12/2016,0000428544,"41,663.66",Revenue,SOUTH RIBBLE COMMUNITY LEISURE LTD,00094210
South Ribble Council,http://statistics.data.gov.uk/doc/local-authority/30UN,Neighbourhood Admin & Support,Operational Furniture & Equip,4010,LITTER PICKERS HA340,21/12/2016,0000428810,748.00,Revenue,SPALDINGS,00070849
South Ribble Council,http://statistics.data.gov.uk/doc/local-authority/30UN,Property Services,Rents,2401,2016 / 2017 rental fees for ADDRESS REDACTED,07/12/2016,0000428435,"12,537.50",Revenue,STONEWELL PROPERTY COMPANY LTD,00118138
South Ribble Council,http://statistics.data.gov.uk/doc/local-authority/30UN,Property Services,Rents,2401,less qtr charge,07/12/2016,0000428435,"-2,850.00",Revenue,STONEWELL PROPERTY COMPANY LTD,00118138
South Ribble Council,http://statistics.data.gov.uk/doc/local-authority/30UN,Area 2 - Waste Transport/Eastern & Central Teams,External Contractors Charges,4570,SPEC REPAIR - PJ62UCH - JFC7693 - AW,21/12/2016,0000428072,961.61,Revenue,TERBERG MATEC UK LTD,00058625
South Ribble Council,http://statistics.data.gov.uk/doc/local-authority/30UN,Area 2 - Waste Transport/Eastern & Central Teams,Materials General,4040,SENSOR - BIN 368 - AW,22/12/2016,0000428946,406.83,Revenue,TERBERG MATEC UK LTD,00058625
South Ribble Council,http://statistics.data.gov.uk/doc/local-authority/30UN,Information Services,Publications,4142,Annual subs to Practical Food Law Manual LL Service,21/12/2016,0000428743,409.50,Revenue,THOMSON REUTERS,00034979
South Ribble Council,http://statistics.data.gov.uk/doc/local-authority/30UN,Information Services,Publications,4142,Annual subs to Practical Food Law Manual LL Service,21/12/2016,0000428743,409.50,Revenue,THOMSON REUTERS,00034979
South Ribble Council,http://statistics.data.gov.uk/doc/local-authority/30UN,Development Enterprise & Comm Mgnt,Other Misc,485K,"20 x 10mm Self Inking Stamps  @ 11.89 each 5,000 Kingsfold Loyalty Cards @  198.00",09/12/2016,0000428453,435.80,Revenue,TOWNSEND PRINT SERVICES LTD,00037170
South Ribble Council,http://statistics.data.gov.uk/doc/local-authority/30UN,Housing,Contributions,4730,Supply and Install UPVC double glazing as part of the winter warmth scheme,21/12/2016,0000428764,429.17,Revenue,TRADE WINDOWS & CONSERVATORIES,00119823
South Ribble Council,http://statistics.data.gov.uk/doc/local-authority/30UN,Housing,Contributions,4730,Supply and Install UPVC double glazing as part of the winter warmth scheme,21/12/2016,0000428779,833.33,Revenue,TRADE WINDOWS & CONSERVATORIES,00119823
South Ribble Council,http://statistics.data.gov.uk/doc/local-authority/30UN,Housing,Contributions,4730,Supply and Install UPVC double glazing as part of the winter warmth scheme,21/12/2016,0000428781,404.17,Revenue,TRADE WINDOWS & CONSERVATORIES,00119823
South Ribble Council,http://statistics.data.gov.uk/doc/local-authority/30UN,Housing,Contributions,4730,Supply and Install UPVC double glazing as part of the winter warmth scheme,21/12/2016,0000428808,960.42,Revenue,TRADE WINDOWS & CONSERVATORIES,00119823
South Ribble Council,http://statistics.data.gov.uk/doc/local-authority/30UN,Planning,Professional Fees,4510,Support on mineral safeguarding area,07/12/2016,0000428367,"1,320.00",Revenue,URBAN VISION  PARTNERSHIP LTD,00105659
South Ribble Council,http://statistics.data.gov.uk/doc/local-authority/30UN,Property Services,Operational Furniture & Equip,4012,2016 / 2017 rental fees for vending machines at the Civic Centre from September 2016 to March 2017,07/12/2016,0000428452,322.09,Revenue,VENDING ENTERPRISES,00101501
South Ribble Council,http://statistics.data.gov.uk/doc/local-authority/30UN,Healthy Communities,Operational Furniture & Equip,4012,Stock for the coffee machines,22/12/2016,0000428775,431.70,Revenue,VENDING ENTERPRISES,00101501
South Ribble Council,http://statistics.data.gov.uk/doc/local-authority/30UN,Information Services,Peripherals,4269,"Annual purchase order for ISDN lines, line rentals & call charges for period 01/04/16 - 31/03/17",02/12/2016,0000428426,"1,233.36",Revenue,VODAFONE RE:CABLE & WIRELESS UK,130810
South Ribble Council,http://statistics.data.gov.uk/doc/local-authority/30UN,Information Services,Peripherals,4247,"Annual purchase order for link, internet & router for period 01/04/16 - 31/03/17",07/12/2016,0000428520,"1,312.66",Revenue,VODAFONE RE:CABLE & WIRELESS UK,130810
South Ribble Council,http://statistics.data.gov.uk/doc/local-authority/30UN,Revenues Plus,Postage,4291,Revenues mail services November 16,07/12/2016,0000428521,328.07,Revenue,WHISTL  UK LTD,131310
South Ribble Council,http://statistics.data.gov.uk/doc/local-authority/30UN,Revenues Plus,Postage,4291,Revenues mail services November 16,07/12/2016,0000428558,293.27,Revenue,WHISTL  UK LTD,131310
South Ribble Council,http://statistics.data.gov.uk/doc/local-authority/30UN,Revenues Plus,Postage,4291,Revenues mail services November 16,14/12/2016,0000428679,251.07,Revenue,WHISTL  UK LTD,131310
South Ribble Council,http://statistics.data.gov.uk/doc/local-authority/30UN,Environmental Health,External Contractors Charges,4570,Door as per Quotation for 4 Franklands.,21/12/2016,0000428794,"1,830.80",Revenue,WILLIAM M SNAPE MANUFACTURING SERVICES UK LTD,132034
South Ribble Council,http://statistics.data.gov.uk/doc/local-authority/30UN,Shared Assurance Services,Employee Related Insurance,1800,addition,14/12/2016,0000428627,263.69,Revenue,ZURICH MANAGEMENT SERVICES,00113159
South Ribble Council,http://statistics.data.gov.uk/doc/local-authority/30UN,Shared Assurance Services,Employee Related Insurance,1800,IPT @ 9.50%,14/12/2016,0000428627,25.05,Revenue,ZURICH MANAGEMENT SERVICES,00113159
